Company(T),Trans.date,Supplier Name(T),TransNo,Amount,Irrecoverable VAT,Service/Dept(T),Procurement Category,Account code,Account code(T),Narrative/Purpose of Spend,Government Procurement card
East Cambridgeshire District Council,09/08/2016,Various Rail Journeys,5105367,582.77,,National Practitioner Support Programme,Employees,1051,Staff Travelling,NPSS,Y
East Cambridgeshire District Council,12/07/2016,Redacted Personal Data,636378,947.53,,National Practitioner Support Programme,Employees,1131,Training - Expenses,Keynote Speed at National Conference 2016,
East Cambridgeshire District Council,31/05/2016,College of Public Speaking Ltd,636377,"1,100.00",,National Practitioner Support Programme,Employees,1135,Training - External,Presentation & Delivery Skills 10/6/16,
East Cambridgeshire District Council,25/07/2016,BRS Training Ltd,636467,558.33,,LATC,Employees,1135,Training - External,Executive day delegate rate,
East Cambridgeshire District Council,09/08/2016,Ironmongry Direct ,5105367,51,,The Grange,Premises,2010,Premises Materials,Door Bolts,Y
East Cambridgeshire District Council,30/06/2016,Foresport Fencing Limited,636273,"7,699.00",,Leisure Centre,Premises,2020,Premises Contract Work,Deposit due prior to work commencing,
East Cambridgeshire District Council,01/07/2016,Ramsay Holmes Doors,636285,907.78,,E Space North,Premises,2020,Premises Contract Work,Upgrade Automatic Access Equipment,
East Cambridgeshire District Council,13/07/2016,C D Clowe,636363,973.14,,"PC Barton Road, Ely",Premises,2020,Premises Contract Work,Barton Rd Toilets,
East Cambridgeshire District Council,11/07/2016,CamAlarms Limited,636372,540,,The Grange,Premises,2020,Premises Contract Work,12 Mnthly Fire Suppression System,
East Cambridgeshire District Council,18/07/2016,C D Clowe,636410,558.7,,The Grange,Premises,2020,Premises Contract Work,installation of power pole,
East Cambridgeshire District Council,07/07/2016,C D Clowe,636359,"1,313.48",,Portley Hill Littleport Depot,Premises,2030,Premises Asset Management,Portley Hill Depot,
East Cambridgeshire District Council,07/07/2016,C D Clowe,636360,"1,321.92",,The Grange,Premises,2030,Premises Asset Management,The Grange 2/7/16,
East Cambridgeshire District Council,18/07/2016,C D Clowe,636400,"1,487.16",,The Grange,Premises,2030,Premises Asset Management,Change to save plan,
East Cambridgeshire District Council,20/07/2016,East Cambs Trading Co Ltd,636474,"6,000.00",,Miscellaneous Properties,Premises,2030,Premises Asset Management,Operating Services Contract ECDC/ECTC Q1,
East Cambridgeshire District Council,09/08/2016,Tricel ,5105367,57.04,,Travellers Site - Wentworth,Premises,2030,Premises Asset Management,Meter Box,Y
East Cambridgeshire District Council,05/07/2016,E.ON UK plc,1134732,"1,057.43",,Parking Of Vehicles,Premises,2110,Electricity,011397609520 St/Lighting-Car Parks,
East Cambridgeshire District Council,22/07/2016,Southern Electric,1134831,"4,790.25",,The Grange,Premises,2110,Electricity,4229351217 The Grange,
East Cambridgeshire District Council,22/07/2016,Southern Electric,1134832,"1,218.17",,Portley Hill Littleport Depot,Premises,2110,Electricity,4229351217 Littleport Depot,
East Cambridgeshire District Council,22/07/2016,Southern Electric,1134834,"-2,487.61",,The Grange,Premises,2110,Electricity,4229351217 The Grange,
East Cambridgeshire District Council,23/06/2016,Stuntney Social Club,636251,500,,Referendums,Premises,2211,Rent Premises/Room Hire,Hall Hire for EU Referendum 23/06/16,
East Cambridgeshire District Council,29/06/2016,Elliott,636263,898.9,,Referendums,Premises,2211,Rent Premises/Room Hire,Davison Road - Portacabin 22/6-24/6/16,
East Cambridgeshire District Council,15/07/2016,Elliott,636441,"2,094.00",,Referendums,Premises,2211,Rent Premises/Room Hire,Portacabin Davison Road,
East Cambridgeshire District Council,23/07/2016,Elliott,636442,"-1,764.00",,Referendums,Premises,2211,Rent Premises/Room Hire,Relates to Invoice 14691749,
East Cambridgeshire District Council,21/07/2016,East Cambs District Council,1134814,"1,436.40",,E Space South,Premises,2310,General Rates,907811185 Unit 5 ESpace South,
East Cambridgeshire District Council,25/07/2016,Anglian Water,1134826,631.3,,Travellers Site - Earith Bridge,Premises,2410,Water Rates,102890274 Earith Bridge Travellers Site,
East Cambridgeshire District Council,12/07/2016,Tailormade Metal Fabrications Ltd,636355,800,,Parks And Open Spaces,Premises,2820,Grounds Contract Work,remove existing container,
East Cambridgeshire District Council,20/07/2016,NLA Media Access Limited,1134815,713,,Newsletter - Public Relations,Premises,2841,Licences,Renewal of Copyright Licence L00050495 17/7/16-16/7/17,
East Cambridgeshire District Council,09/08/2016,T C Harrison ,5105367,192.36,,Weekly Collection Support Grant,Transport,3010,Vehicle Repairs,Service AK13YJA,Y
East Cambridgeshire District Council,05/07/2016,Be Fuelcards,1134747,779.14,,Parks And Open Spaces,Transport,3021,Derv,Fuelcards - June 2016,
East Cambridgeshire District Council,05/07/2016,Be Fuelcards,1134747,613.06,,Sanctuary Grasscutting,Transport,3021,Derv,Fuelcards - June 2016,
East Cambridgeshire District Council,05/07/2016,Post Office Ltd,1134728,650,,Weekly Collection Support Grant,Transport,3024,Vehicle Excise Duty,Road Fund Licence,
East Cambridgeshire District Council,05/07/2016,Post Office Ltd,1134729,650,,Weekly Collection Support Grant,Transport,3024,Vehicle Excise Duty,Road Fund Licence,
East Cambridgeshire District Council,05/07/2016,Post Office Ltd,1134730,650,,Weekly Collection Support Grant,Transport,3024,Vehicle Excise Duty,Road Fund Licence,
East Cambridgeshire District Council,09/08/2016,T C Harrison,5105367,30,,Weekly Collection Support Grant,Transport,3024,Vehicle Excise Duty,MoT AK13JYA,Y
East Cambridgeshire District Council,05/07/2016,Safesite Facilities,636319,"1,252.30",,General Gang,Supplies and Services,4010,Equipment - Purchases,,
East Cambridgeshire District Council,11/07/2016,NewAuto Ltd t/as Mogo (UK),636396,"1,812.70",,Licencing - Env Services,Supplies and Services,4010,Equipment - Purchases,,
East Cambridgeshire District Council,09/08/2016,PC World ,5105367,149.98,,E Space North,Supplies and Services,4010,Equipment - Purchases,Epson Printer,Y
East Cambridgeshire District Council,06/07/2016,A1 Audio Visual Events,636306,895,,Referendums,Supplies and Services,4013,Equipment - Hire,Event Equipment for EU Referendum,
East Cambridgeshire District Council,10/06/2016,Drake Towage Ltd,636045,"6,639.51",,Parks And Open Spaces,Supplies and Services,4015,S106 Spend,New Timber Fendering Ely Mooring,
East Cambridgeshire District Council,04/07/2016,Bunzl  Cleaning & Hygiene Supplies,636262,"1,095.30",,Public Conveniences,Supplies and Services,4030,Materials - Purchase,,
East Cambridgeshire District Council,02/07/2016,Park Retail Ltd t/as Love2Reward,636318,"1,078.00",,Recycling Reward Scheme,Supplies and Services,4030,Materials - Purchase,Love2Shop Vouchers,
East Cambridgeshire District Council,12/07/2016,Broxap Ltd,636354,938,,Parks And Open Spaces,Supplies and Services,4030,Materials - Purchase,Cast iron Eastgate seat,
East Cambridgeshire District Council,21/07/2016,Corporate Mailing Solutions,636473,"2,626.95",,Registration of Electors,Supplies and Services,4310,Printing & Stationery,2016 Canvas Mailing HEF�s Run 1,
East Cambridgeshire District Council,09/08/2016,ProPrint ,5105367,42.99,,Printing/Copying,Supplies and Services,4310,Printing & Stationery,Photo Ink Tank,Y
East Cambridgeshire District Council,13/07/2016,Pro Vision Photography Ltd,636357,"1,024.50",,National Practitioner Support Programme,Supplies and Services,4321,Photography,Photography service attendance fee for 2 days,
East Cambridgeshire District Council,05/07/2016,Barry Cornelius Associates Ltd,636308,"7,200.00",,Finance - Accountancy,Supplies and Services,4401,Agency Workers,Redacted Personal Data - May 2016,
East Cambridgeshire District Council,01/07/2016,Sonovate Ltd,636335,707.35,,Env Health Food,Supplies and Services,4401,Agency Workers,Redacted Personal Data W/E 26/6/26,
East Cambridgeshire District Council,07/07/2016,Sonovate Ltd,636347,912.23,,Env Health Food,Supplies and Services,4401,Agency Workers,Redacted Personal Data W/E 1/7/16,
East Cambridgeshire District Council,18/07/2016,Matchtech Group Ltd,636397,"1,170.00",,Planning,Supplies and Services,4401,Agency Workers,Redacted Personal Data W/E 4/7/16,
East Cambridgeshire District Council,18/07/2016,Matchtech Group Ltd,636411,"1,170.00",,Planning,Supplies and Services,4401,Agency Workers,Redacted Personal Data W/E 20/6/16,
East Cambridgeshire District Council,22/07/2016,Matchtech Group Ltd,636453,"1,950.00",,Planning,Supplies and Services,4401,Agency Workers,Redacted Personal Data - Week Commencing 11/7/16,
East Cambridgeshire District Council,11/07/2016,G4S Cash Solutions (UK) Ltd,1134755,822.99,,Angel Drove Commuters Car Park,Supplies and Services,4412,Courier Service,Contract 3342504 1/8/16-31/8/16,
East Cambridgeshire District Council,20/07/2016,Cambridgeshire County Council,1134810,"10,196.00",,Land Charges Admin,Supplies and Services,4420,Inquiries,Local Searches 1/4/16-30/6/16,
East Cambridgeshire District Council,01/07/2016,David Clark & Co Ltd,636212,"1,810.00",,Homelessness Prevention,Supplies and Services,4421,Sanctuary Homelessness/Rent Deposit,Redacted Personal Data,
East Cambridgeshire District Council,08/07/2016,Henleys Mildenhall Limited,636324,"1,650.00",,Homelessness Prevention,Supplies and Services,4421,Sanctuary Homelessness/Rent Deposit,Redacted Personal Data,
East Cambridgeshire District Council,13/07/2016,David Clark & Co Ltd,636375,"1,812.50",,Homelessness Prevention,Supplies and Services,4421,Sanctuary Homelessness/Rent Deposit,Redacted Personal Data,
East Cambridgeshire District Council,13/07/2016,Redacted Personal Data,636376,600,,Homelessness Prevention,Supplies and Services,4421,Sanctuary Homelessness/Rent Deposit,Redacted Personal Data,
East Cambridgeshire District Council,19/07/2016,Ely Estates,636425,875,,Homelessness Prevention,Supplies and Services,4421,Sanctuary Homelessness/Rent Deposit,Redacted Personal Data,
East Cambridgeshire District Council,22/07/2016,St Andrews Bureau Ltd,636439,"1,887.50",,Homelessness Prevention,Supplies and Services,4421,Sanctuary Homelessness/Rent Deposit,Redacted Personal Data,
East Cambridgeshire District Council,08/07/2016,King Street Housing Society Ltd,1134757,652.5,,Homelessness Prevention,Supplies and Services,4421,Sanctuary Homelessness/Rent Deposit,Redacted Personal Data,
East Cambridgeshire District Council,06/07/2016,Sanctuary Group,1134724,"3,776.89",,Homelessness,Supplies and Services,4423,Hostel Charges/Voids,Void Re-charges 4/4/16-30/6/16 - Redacted Personal Data,
East Cambridgeshire District Council,06/07/2016,Sanctuary Group,1134725,"4,090.68",,Homelessness,Supplies and Services,4423,Hostel Charges/Voids,Void Re-charges - 4/4/16-30/6/16 - Redacted Personal Data,
East Cambridgeshire District Council,06/07/2016,Sanctuary Group,1134726,"3,458.00",,Homelessness,Supplies and Services,4423,Hostel Charges/Voids,Void Re-charges 04/04/16-30/6/16 - Redacted Personal Data,
East Cambridgeshire District Council,11/07/2016,Fenland District Council,636389,560,,Street Cleansing,Supplies and Services,4428,Tipping Fees,Asbestos clearance Devills Dyke CP,
East Cambridgeshire District Council,30/06/2016,Foresight Consulting (UK) Ltd,636272,"11,383.90",,Corp.Man.Policy Research/Review,Supplies and Services,4430,Consultants Fees,Transformation Programme,
East Cambridgeshire District Council,04/07/2016,Jeremy Benn Associates Limited,636314,"9,878.55",,Local Plan Preparation,Supplies and Services,4430,Consultants Fees,Submission of SFRA & WCS Preliminary Reports,
East Cambridgeshire District Council,07/07/2016,University of Cambridge,636320,"72,761.55",,Leisure Centre,Supplies and Services,4430,Consultants Fees,Archaeological Excavation - Ely Leisure Village,
East Cambridgeshire District Council,14/06/2016,Norfolk County Council,636322,"10,000.00",,Corp.Man.Policy Research/Review,Supplies and Services,4430,Consultants Fees,East Anglia Devolution,
East Cambridgeshire District Council,22/10/2015,Firmstep Ltd,636350,"1,100.00",,Planning,Supplies and Services,4430,Consultants Fees,Planning Appointments Scoping Day 19/10/15,
East Cambridgeshire District Council,12/07/2016,Cambridgeshire County Council,636390,"15,000.00",,Handyperson Scheme,Supplies and Services,4430,Consultants Fees,Annual Contribution to Handypersons service,
East Cambridgeshire District Council,05/07/2016,East of England Local Government Association,636416,"2,637.70",,Corp.Man.Policy Research/Review,Supplies and Services,4430,Consultants Fees,JE Implementation June 2016,
East Cambridgeshire District Council,08/07/2016,Beacon Planning Ltd,636418,"1,250.00",,Asset Management,Supplies and Services,4430,Consultants Fees,Site appraisal Soham,
East Cambridgeshire District Council,27/07/2016,Peterborough City Council,636469,"54,154.15",,Local Plan Preparation,Supplies and Services,4430,Consultants Fees,Staff support services Q1 2016/17,
East Cambridgeshire District Council,20/07/2016,Mace Limited,636472,"42,800.00",,Leisure Centre,Supplies and Services,4430,Consultants Fees,RIBA 4 June 16,
East Cambridgeshire District Council,20/07/2016,East Cambs Trading Co Ltd,636474,"7,500.00",,Miscellaneous Properties,Supplies and Services,4430,Consultants Fees,Operating Services Contract ECDC/ECTC Q1,
East Cambridgeshire District Council,06/07/2016,Abritas Ltd,1134824,"5,116.00",,Infrastructure and Strategy,Supplies and Services,4430,Consultants Fees,"Provision of Service HR, CBL, HOM, EHO, CHP - 1/6/16-30/6/17",
East Cambridgeshire District Council,23/06/2016,Ernst & Young LLP,1134635,521,,Corp.Man.Policy Research/Review,Supplies and Services,4441,External Audit Fees,Scale Fee Variation Increase relating to DWP 2014/15 Housing Benefits Claim,
East Cambridgeshire District Council,06/07/2016,King Street Housing Society Ltd,1134721,"6,854.14",,Homelessness Prevention,Supplies and Services,4451,Management Fees,Private Leasing Scheme - Annual Fee YEar Ending 31/3/17,
East Cambridgeshire District Council,17/06/2016,Purchase Power,636208,"1,709.61",,E Space North,Supplies and Services,4510,Postage,Meter Reset & Transaction Fee 16/5/16 & 8/9/16 - Cartridge & Late Payment Fee,
East Cambridgeshire District Council,02/07/2016,Francotyp-Postalia Ltd,636293,500,,E Space South,Supplies and Services,4510,Postage,Teleset Postage Download,
East Cambridgeshire District Council,01/07/2016,Royal Mail Group plc,1134717,"1,236.15",,Referendums,Supplies and Services,4510,Postage,Account 0204765009,
East Cambridgeshire District Council,15/07/2016,Neopost Ltd,1134787,"2,000.00",,DMS,Supplies and Services,4510,Postage,Postage recredit,
East Cambridgeshire District Council,20/07/2016,Royal Mail Group plc,1134811,627.6,,Referendums,Supplies and Services,4510,Postage,postal voting/postal vote licence fee,
East Cambridgeshire District Council,20/07/2016,Royal Mail Group plc,1134811,627.6,,Police & Crime Commissioners Elections,Supplies and Services,4510,Postage,postal voting/postal vote licence fee,
East Cambridgeshire District Council,22/07/2016,Royal Mail Group plc,1134830,"-3,029.00",,Police & Crime Commissioners Elections,Supplies and Services,4510,Postage,Relates to Invoice 9052017678,
East Cambridgeshire District Council,22/07/2016,Idox Software Limited,636447,"1,440.00",,Registration of Electors,Supplies and Services,4520,Telephone,IVR Service for Annual Canvass 2016,
East Cambridgeshire District Council,19/07/2016,Virgin Media Payments Ltd - 743058701,1134800,"2,082.29",,The Grange,Supplies and Services,4520,Telephone,743058701,
East Cambridgeshire District Council,19/07/2016,Virgin Media Payments Ltd - 743058701,1134801,"2,110.74",,The Grange,Supplies and Services,4520,Telephone,743058701,
East Cambridgeshire District Council,19/07/2016,Virgin Media Payments Ltd - 743058701,1134805,"2,066.77",,The Grange,Supplies and Services,4520,Telephone,743058701,
East Cambridgeshire District Council,01/07/2016,Vodafone Ltd,636288,675,,LATC,Supplies and Services,4521,Mobile Phones,,
East Cambridgeshire District Council,29/06/2016,Virgin Media Payments - 923467,1134652,903.88,,Information Technology,Supplies and Services,4522,Contributions (IT Only CCN),923467 July 2016,
East Cambridgeshire District Council,12/07/2016,YPL Exhibitions ,636362,850,,Marketing & Grants,Supplies and Services,4540,Promotion Costs,Group Leisure & Travel Show 2016,
East Cambridgeshire District Council,18/07/2016,Archant Regional Ltd,636406,"2,750.00",,Economic Development Admin,Supplies and Services,4540,Promotion Costs,,
East Cambridgeshire District Council,06/06/2016,Northgate Public Services (UK) Ltd,1134536,"2,660.00",,Information Technology,Supplies and Services,4550,IT Licences,3D Secure Service & fixed transaction service 3rd Yr,
East Cambridgeshire District Council,05/07/2016,Vodafone Ltd,1134731,"1,131.54",,Information Technology,Supplies and Services,4550,IT Licences,GSi Convergence Framework 1/4/16-30/6/16,
East Cambridgeshire District Council,09/08/2016,Microsoft,5105367,297.6,,LATC,Supplies and Services,4550,IT Licences,Office 365,Y
East Cambridgeshire District Council,09/08/2016,SSL,5105367,55.79,,Information Technology,Supplies and Services,4550,IT Licences,Cert. Trading Company,Y
East Cambridgeshire District Council,09/08/2016,Amazon ,5105367,31.81,,Information Technology,Supplies and Services,4551,Hardware Purchases/Maint,Intergral 32GB USB,Y
East Cambridgeshire District Council,01/07/2016,Corkers Crisps Ltd,636258,"2,000.00",,Economic Development Admin,Supplies and Services,4710,Grants,Apprenticeship Grant Funding,
East Cambridgeshire District Council,11/07/2016,Penguin Motors Ltd,636328,"2,000.00",,Economic Development Admin,Supplies and Services,4710,Grants,Apprenticeship grant funding,
East Cambridgeshire District Council,23/06/2016,Manchester City Council,636146,"13,006.15",,National Practitioner Support Programme,Supplies and Services,4713,Grants - Contributions,Secondment Q1 2016-17 - Redacted Personal Data,
East Cambridgeshire District Council,06/07/2016,ClearView Communications Limited,636299,"13,660.00",,Community Safety,Supplies and Services,4713,Grants - Contributions,New Column & 2MP Camera - Soham Village College,
East Cambridgeshire District Council,15/06/2016,Manchester City Council,636316,"9,503.30",,National Practitioner Support Programme,Supplies and Services,4713,Grants - Contributions,Qtr 4 2015/16 - Redacted Personal Data Secondment,
East Cambridgeshire District Council,07/07/2016,Spirus Marketing Ltd,636323,"1,240.00",,Community Safety,Supplies and Services,4713,Grants - Contributions,Road Safety Partnership/Read the Road Campaign,
East Cambridgeshire District Council,20/07/2016,Cambridge Housing Society,636435,"6,250.00",,Community Safety,Supplies and Services,4713,Grants - Contributions,Setting up & Running the pilot Ely Timebank at Bell Holt for 10 Months,
East Cambridgeshire District Council,21/07/2016,Voluntary & Community Action East Cambridgeshire,636438,"2,000.00",,Community Safety,Supplies and Services,4713,Grants - Contributions,Community Fund Grant - Helping Hands Garden & House Clearance,
East Cambridgeshire District Council,22/07/2016,Manchester City Council,636452,"4,513.07",,National Practitioner Support Programme,Supplies and Services,4713,Grants - Contributions,Secondment Redacted Personal Data - July 2016,
East Cambridgeshire District Council,14/07/2016,Ely Museum,636391,"3,790.00",,The Old Gaol House,Supplies and Services,4714,Grants - Ely Museum,2nd quarterly instalment rev grant 2016/17,
East Cambridgeshire District Council,07/07/2016,Dal Rod,636343,589,,Travellers Site - Earith Bridge,Supplies and Services,4910,Other Payments,Earith Bridge Caravan Park,
East Cambridgeshire District Council,14/07/2016,Unison (10455),1134768,611.65,,Payroll,Supplies and Services,4910,Other Payments,Membership June 2016,
East Cambridgeshire District Council,09/08/2016,Information Commissioner ,5105367,910,,Member & Committee Support,Supplies and Services,4913,Data Protect Act Fee,26 x DPA Reg,Y
East Cambridgeshire District Council,21/07/2016,"Bob Smith Heating, Plumbing & Electrical Ltd",1134819,"1,258.40",,Home Improvement Agency Services,Supplies and Services,4938,Client Contribution,Redacted Personal Data,
East Cambridgeshire District Council,28/07/2016,Paul Barrow Builders  Ltd,1134919,"2,149.89",,Home Improvement Agency Services,Supplies and Services,4938,Client Contribution,Contribution towards DFG 16/00035/DFG  Redacted Personal Data,
East Cambridgeshire District Council,28/07/2016,Lynch Healthcare,1134921,"1,280.36",,Home Improvement Agency Services,Supplies and Services,4938,Client Contribution,DFG - Redacted Personal Data - 16/00013/DFG,
East Cambridgeshire District Council,06/07/2016,Spirus Marketing Ltd,636381,"5,454.21",,Public Relations,Third Party Payments,5010,Contracted Services,PR & Marketing Service for June 2016,
East Cambridgeshire District Council,13/07/2016,East Cambs Trading Co Ltd,1134765,"65,620.00",,Sanctuary Grasscutting,Third Party Payments,5010,Contracted Services,Various sites grounds maintenance,
East Cambridgeshire District Council,21/07/2016,King Street Housing Society Ltd,1134816,"5,316.36",,Homelessness Prevention,Third Party Payments,5010,Contracted Services,Credit note taken in error - Refund received 27/8/15,
East Cambridgeshire District Council,01/07/2016,Breckland Council,1134712,"38,358.90",,Council Tax Collection Costs,Third Party Payments,5020,ARP Services,Monthly Provision of Service 2016/17,
East Cambridgeshire District Council,01/07/2016,Breckland Council,1134712,"47,059.53",,Housing Benefits,Third Party Payments,5020,ARP Services,Monthly Provision of Service 2016/17,
East Cambridgeshire District Council,01/07/2016,Breckland Council,1134712,"9,716.74",,NNDR Collection costs,Third Party Payments,5020,ARP Services,Monthly Provision of Service 2016/17,
East Cambridgeshire District Council,01/07/2016,Breckland Council,1134712,"-1,016.11",,Anglia Revenue Partnerships (ARP),Third Party Payments,5020,ARP Services,Monthly Provision of Service 2016/17,
East Cambridgeshire District Council,29/06/2016,Breckland Council,1134786,"3,794.92",,Housing Benefits,Third Party Payments,5023,Grants Paid Over (ARP),DWP RTI BDM Initiative 15/16,
East Cambridgeshire District Council,19/07/2016,Breckland Council,1134790,"2,396.00",,Housing Benefits,Third Party Payments,5023,Grants Paid Over (ARP),RTI BDM 2016/17 & HB Family Premium March 2016,
East Cambridgeshire District Council,09/04/2015,Firmstep Ltd,636351,"6,000.00",,Customer Relationship Management (CRM),Capital Costs,C108,Supplies & Services,6 Add consultancy days,
East Cambridgeshire District Council,09/04/2015,Firmstep Ltd,636352,"2,000.00",,Customer Relationship Management (CRM),Capital Costs,C108,Supplies & Services,2 Add consultancy days 2 & 7th Aporil 2015,
East Cambridgeshire District Council,12/07/2016,Firmstep Ltd,636353,"8,750.00",,Customer Relationship Management (CRM),Capital Costs,C108,Supplies & Services,Final Consultancy payment,
East Cambridgeshire District Council,10/06/2016,Drake Towage Ltd,636045,"28,494.00",,2nd round conservation,Capital Costs,C201,Payments To Contractors,New Timber Fendering Ely Mooring,
East Cambridgeshire District Council,04/07/2016,Cambridge Ecology Ltd,636331,"1,745.80",,Littleport Station Car Park,Capital Costs,C301,Professional Fees,Prelim ecological appraisal land adj to Littleport Railway,
East Cambridgeshire District Council,12/07/2016,Cheffins,636414,"2,407.50",,The Vineyards,Capital Costs,C301,Professional Fees,Commission Redacted Personal Data,
East Cambridgeshire District Council,15/07/2016,Cheffins,636417,"2,963.00",,The Vineyards,Capital Costs,C301,Professional Fees,14 The Vineyards,
East Cambridgeshire District Council,13/07/2016,Environmental Protection Strategies Ltd (EPS) LTD,636475,"3,440.00",,Angel Drove Commuters Car Park,Capital Costs,C301,Professional Fees,Ground investigation at Angel Drove Ely,
East Cambridgeshire District Council,12/06/2016,Turnstone Ely Limited,636287,"19,514.00",,Leisure Facility,Capital Costs,C302,Consultants Fees,Land at Downham Road Ely,
East Cambridgeshire District Council,05/06/2016,Aurum Ecology Ltd,636307,699,,Angel Drove Commuters Car Park,Capital Costs,C302,Consultants Fees,Land at Angel Drove Ely,
East Cambridgeshire District Council,20/07/2016,East Cambs Trading Co Ltd,636474,"5,000.00",,Angel Drove Commuters Car Park,Capital Costs,C302,Consultants Fees,Operating Services Contract ECDC/ECTC Q1,
East Cambridgeshire District Council,12/07/2016,Witcham Parish Council,636346,"10,000.00",,Community Facilities Grant,Capital Costs,C401,Capital Grants,Facilities Improvement Grant,
East Cambridgeshire District Council,14/07/2016,Man Construction Ltd,1134771,"8,635.02",,Mandatory Disabled Fac.Grant,Capital Costs,C402,Home Imp.Grant 50% advance,Redacted Personal Data,
East Cambridgeshire District Council,14/07/2016,Man Construction Ltd,1134772,"15,027.60",,Mandatory Disabled Fac.Grant,Capital Costs,C402,Home Imp.Grant 50% advance,Redacted Personal Data,
East Cambridgeshire District Council,21/07/2016,Man Construction Ltd,1134817,"1,154.00",,Mandatory Disabled Fac.Grant,Capital Costs,C402,Home Imp.Grant 50% advance,Redacted Personal Data,
East Cambridgeshire District Council,28/07/2016,Trevor Benton Construction Ltd,1134920,"5,951.70",,Mandatory Disabled Fac.Grant,Capital Costs,C402,Home Imp.Grant 50% advance,Redacted Personal Data,
East Cambridgeshire District Council,28/07/2016,"Bob Smith Heating, Plumbing & Electrical Ltd",1134923,"4,252.50",,Mandatory Disabled Fac.Grant,Capital Costs,C402,Home Imp.Grant 50% advance,Redacted Personal Data,
East Cambridgeshire District Council,21/07/2016,"Bob Smith Heating, Plumbing & Electrical Ltd",1134820,"1,491.60",,Mandatory Disabled Fac.Grant,Capital Costs,C404,Home Imp.Grant. Final payment,Redacted Personal Data,
East Cambridgeshire District Council,21/07/2016,David Frear Plumbing & Heating Ltd,1134821,"9,963.93",,Mandatory Disabled Fac.Grant,Capital Costs,C404,Home Imp.Grant. Final payment,Redacted Personal Data,
East Cambridgeshire District Council,28/07/2016,"Bob Smith Heating, Plumbing & Electrical Ltd",1134917,"5,614.00",,Mandatory Disabled Fac.Grant,Capital Costs,C404,Home Imp.Grant. Final payment,Redacted Personal Data,
East Cambridgeshire District Council,28/07/2016,Paul Barrow Builders  Ltd,1134918,"4,899.57",,Mandatory Disabled Fac.Grant,Capital Costs,C404,Home Imp.Grant. Final payment,Redacted Personal Data,
East Cambridgeshire District Council,28/07/2016,Lynch Healthcare,1134922,"1,517.64",,Mandatory Disabled Fac.Grant,Capital Costs,C404,Home Imp.Grant. Final payment,Redacted Personal Data,
East Cambridgeshire District Council,07/07/2016,Thompson Electrical (Cambridge) Ltd,1134739,"3,000.00",,Home Repair Assistance,Capital Costs,C405,Home Repair Grants,Redacted Personal Data,
East Cambridgeshire District Council,13/07/2016,Cambridgeshire County Council,636349,"81,262.17",,Section 106 Agreements,Section 106,P360,Section 106 Rev Payments,Ely City Circular P1-P13 15/16,
,,,,"684,567.16",,,,,,,
